bitfinex-derivatives/quotes_BTCF0:USTF0_20240923
["timestamp","ask_amount","ask_price","bid_price","bid_amount"]
[1727130677287,0.07849888,63382.0,63374.0,0.16]
[1727130677493,0.007,63380.0,63379.0,0.078886]
[1727130678979,0.007,63380.0,63379.0,0.079886]
[1727130678980,0.02557765,63380.0,63379.0,0.079886]
[1727130679182,0.007,63381.0,63379.0,0.079886]
[1727130679183,0.07534898,63381.0,63379.0,0.079886]
[1727130679398,0.07834898,63380.0,63379.0,0.079886]
[1727130679787,0.07834898,63380.0,63379.0,0.080886]
[1727130679788,0.08534898,63380.0,63379.0,0.080886]
[1727130681406,0.07534898,63380.0,63379.0,0.080886]
[1727130682404,0.08534898,63380.0,63379.0,0.080886]
[1727130682695,0.07834898,63380.0,63379.0,0.080886]
[1727130683284,0.08534898,63380.0,63379.0,0.080886]
[1727130685295,0.16423398,63380.0,63379.0,0.080886]
[1727130685691,0.1642252,63380.0,63379.0,0.080886]
[1727130687001,0.095885,63380.0,63379.0,0.080886]
[1727130688907,0.17463684,63380.0,63379.0,0.080886]
[1727130689395,0.17463963,63380.0,63379.0,0.080886]
[1727130690298,0.17463947,63380.0,63379.0,0.080886]
[1727130692502,0.095885,63380.0,63379.0,0.080886]
[1727130693411,0.12146393,63380.0,63379.0,0.080886]
[1727130695495,0.21596614,63380.0,63379.0,0.080886]
[1727130696486,0.16422635,63380.0,63379.0,0.080886]
[1727130697989,0.52502635,63380.0,63379.0,0.080886]
[1727130698602,0.52502635,63380.0,63379.0,0.002]
[1727130700695,0.16422635,63380.0,63379.0,0.002]
[1727130700896,0.52502635,63380.0,63379.0,0.002]
[1727130701298,0.48226393,63380.0,63379.0,0.002]
[1727130702005,0.57464765,63380.0,63379.0,0.002]
[1727130707912,0.63120566,63380.0,63379.0,0.002]
[1727130709003,0.52501345,63380.0,63379.0,0.002]
[1727130709203,0.48226393,63380.0,63379.0,0.002]
[1727130709407,0.04257893,63380.0,63379.0,0.441686]
[1727130709602,0.017,63380.0,63379.0,0.441686]
[1727130710402,0.09588143,63380.0,63379.0,0.48885984]
[1727130710613,0.09588143,63380.0,63379.0,0.441686]
[1727130710823,0.04257639,63380.0,63379.0,0.441686]
[1727130712293,0.04257674,63380.0,63379.0,0.441686]
[1727130712498,0.04157674,63380.0,63379.0,0.441686]
[1727130715907,0.016,63380.0,63379.0,0.441686]
[1727130716105,0.04157684,63380.0,63379.0,0.441686]
[1727130716499,0.016,63380.0,63379.0,0.441686]
[1727130717007,0.09484954,63380.0,63379.0,0.441686]
[1727130717206,0.016,63380.0,63379.0,0.441686]
[1727130717511,0.09484973,63380.0,63379.0,0.441686]
[1727130718213,0.17373473,63380.0,63379.0,0.441686]
[1727130718417,0.094885,63380.0,63379.0,0.441686]
[1727130718711,0.23046225,63380.0,63379.0,0.3628]
[1727130718915,0.22946225,63380.0,63379.0,0.3618]
[1727130719616,0.22946225,63380.0,63376.0,0.07889]
[1727130719617,0.078888,63378.0,63376.0,0.07889]
[1727130719808,0.078891,63375.0,63374.0,0.04717384]
[1727130720110,0.078891,63375.0,63374.0,0.40797384]
[1727130722414,0.082891,63375.0,63374.0,0.3608]
[1727130723509,0.085891,63375.0,63374.0,0.3608]
[1727130724110,0.085891,63375.0,63373.0,0.078893]
[1727130724111,0.15435079,63375.0,63373.0,0.078893]
[1727130724311,0.0255787,63374.0,63373.0,0.078893]
[1727130724807,0.1044707,63374.0,63373.0,0.078893]
[1727130725414,0.1074707,63374.0,63373.0,0.078893]
[1727130725718,0.15035561,63374.0,63373.0,0.078893]
[1727130725916,0.1074707,63374.0,63373.0,0.078893]
[1727130726115,0.15034749,63374.0,63373.0,0.078893]
[1727130726314,0.15034626,63374.0,63373.0,0.078893]
[1727130726510,0.1044707,63374.0,63373.0,0.078893]
[1727130726717,0.15034514,63374.0,63373.0,0.078893]
[1727130727111,0.15234996,63374.0,63373.0,0.078893]
[1727130728222,0.14934996,63374.0,63373.0,0.078893]
[1727130728422,0.15234996,63374.0,63373.0,0.078893]
[1727130730021,0.07345796,63374.0,63373.0,0.078893]
[1727130731609,0.07345796,63374.0,63373.0,0.1035606]
[1727130731809,0.0305787,63374.0,63373.0,0.1035606]
[1727130732018,0.0305787,63374.0,63373.0,0.14177955]
[1727130732019,0.005,63374.0,63373.0,0.14177955]
[1727130732328,0.005,63374.0,63373.0,0.078893]
[1727130732711,0.005,63374.0,63373.0,0.14187962]
[1727130732920,0.005,63374.0,63373.0,0.078893]
[1727130733826,0.083892,63374.0,63373.0,0.078893]
[1727130734029,0.083892,63374.0,63373.0,0.14194888]
[1727130734323,0.083892,63374.0,63373.0,0.078893]
[1727130734630,0.083892,63374.0,63373.0,0.14195485]
[1727130734829,0.083892,63374.0,63373.0,0.078893]
[1727130735029,0.083892,63374.0,63373.0,0.14195588]
[1727130735225,0.083892,63374.0,63373.0,0.078893]
[1727130737320,0.083892,63374.0,63373.0,0.14196102]
[1727130737627,0.083892,63374.0,63373.0,0.078893]
[1727130738131,0.083892,63374.0,63373.0,0.14196329]
[1727130739125,0.10947083,63374.0,63373.0,0.078893]
[1727130739326,0.15231221,63374.0,63373.0,0.078893]
[1727130742822,0.078894,63373.0,63372.0,0.36172]
[1727130743030,0.14731421,63373.0,63372.0,0.439695]
[1727130743341,0.50811421,63373.0,63372.0,0.078895]
[1727130743529,0.14731421,63373.0,63372.0,0.078895]
[1727130744535,0.14927698,63373.0,63372.0,0.078895]
[1727130744829,0.10747283,63373.0,63372.0,0.078895]
[1727130745520,0.15031676,63373.0,63372.0,0.078895]
[1727130747122,0.081894,63373.0,63372.0,0.078895]
[1727130748327,0.081894,63373.0,63372.0,0.14196529]
[1727130754131,0.15023816,63373.0,63372.0,0.078895]
[1727130755041,0.078901,63367.0,63364.0,0.3608]
[1727130755334,0.078903,63365.0,63364.0,0.3608]
[1727130755540,0.14724716,63365.0,63364.0,0.3608]
[1727130756135,0.14703777,63365.0,63364.0,0.3608]
[1727130756441,0.14303777,63365.0,63364.0,0.3608]
[1727130756637,0.14303777,63365.0,63358.0,0.086312]
[1727130756638,0.17813477,63365.0,63358.0,0.086312]
[1727130756843,0.3608,63366.0,63354.0,0.4708]
[1727130756844,0.07891,63360.0,63354.0,0.4708]
[1727130757034,0.07891,63360.0,63356.0,0.078915]
[1727130757035,0.06813477,63359.0,63356.0,0.078915]
[1727130757229,0.11,63361.0,63354.0,0.3616]
[1727130757230,0.06784513,63358.0,63354.0,0.3616]
[1727130757450,0.09459334,63355.0,63354.0,0.3608]
[1727130757949,0.08859334,63355.0,63354.0,0.3608]
[1727130758237,0.001,63359.0,63355.0,0.078915]
[1727130758442,0.001,63358.0,63356.0,0.11]
[1727130758838,0.001,63358.0,63357.0,0.078913]
[1727130759141,0.078906,63363.0,63358.0,0.078912]
[1727130759350,0.078906,63363.0,63362.0,0.11]
[1727130759539,0.12097094,63363.0,63362.0,0.11]
[1727130761441,0.12197094,63363.0,63362.0,0.11]
[1727130761849,0.12197094,63363.0,63362.0,0.118]
[1727130762029,0.12297094,63363.0,63362.0,0.118]
[1727130762234,0.080906,63363.0,63362.0,0.118]
[1727130764546,0.080906,63363.0,63362.0,0.008]
[1727130776352,0.10649149,63363.0,63362.0,0.008]
[1727130777070,0.18539749,63363.0,63362.0,0.008]
[1727130780149,0.18539756,63363.0,63362.0,0.008]
[1727130780355,0.06969445,63363.0,63355.0,0.3608]
[1727130780555,0.078915,63356.0,63355.0,0.3608]
[1727130780870,0.10450056,63356.0,63355.0,0.3608]
[1727130781256,0.19902124,63356.0,63355.0,0.3608]
[1727130781466,0.10450056,63356.0,63355.0,0.439716]
[1727130781661,0.10450056,63356.0,63355.0,0.453716]
[1727130782055,0.10450056,63356.0,63355.0,0.440716]
[1727130782358,0.10550056,63356.0,63355.0,0.453716]
[1727130783166,0.10550056,63356.0,63355.0,0.500416]
[1727130783351,0.10650056,63356.0,63355.0,0.500416]
[1727130784146,0.080915,63356.0,63355.0,0.500416]
[1727130784351,0.080915,63356.0,63355.0,0.56348629]
[1727130785151,0.080915,63356.0,63355.0,0.500416]
[1727130785658,0.002,63356.0,63355.0,0.500416]
[1727130786065,0.03010207,63356.0,63355.0,0.500416]
[1727130787658,0.03010207,63356.0,63355.0,0.67882173]
[1727130787849,0.03010207,63356.0,63355.0,0.67941059]
[1727130788053,0.03010207,63356.0,63355.0,0.60065341]
[1727130791263,0.05568611,63356.0,63355.0,0.500416]
[1727130791458,0.03010207,63356.0,63355.0,0.500416]
[1727130792861,0.05568634,63356.0,63355.0,0.500416]
[1727130795061,0.03010207,63356.0,63355.0,0.500416]
[1727130795455,0.05568671,63356.0,63355.0,0.500416]
[1727130795972,0.03010207,63356.0,63355.0,0.500416]
[1727130797058,0.0556867,63356.0,63355.0,0.500416]
[1727130797371,0.05568684,63356.0,63355.0,0.500416]
[1727130797669,0.03010207,63356.0,63355.0,0.500416]
[1727130797963,0.05568685,63356.0,63355.0,0.500416]
[1727130798165,0.05568684,63356.0,63355.0,0.500416]
[1727130798369,0.03010207,63356.0,63355.0,0.500416]
[1727130798671,0.10899307,63356.0,63355.0,0.54761807]
[1727130799370,0.03010207,63356.0,63355.0,0.60057513]
[1727130802559,0.03010207,63356.0,63355.0,0.60056857]
[1727130805373,0.03010207,63356.0,63355.0,0.55386857]
[1727130805760,0.10901707,63356.0,63355.0,0.55386857]
[1727130806371,0.10901707,63356.0,63355.0,0.453716]
[1727130808166,0.10901707,63356.0,63355.0,0.092916]
[1727130810078,0.46981707,63356.0,63355.0,0.07696855]
[1727130810281,0.10901707,63356.0,63355.0,0.07696855]
[1727130810678,0.10901707,63356.0,63355.0,0.014]
[1727130810896,0.10901707,63356.0,63355.0,0.07696855]
[1727130811279,0.10901707,63356.0,63355.0,0.014]
[1727130811678,0.10901707,63356.0,63355.0,0.18696855]
[1727130814376,0.10901707,63356.0,63355.0,0.124]
[1727130815081,0.13460384,63356.0,63355.0,0.014]
[1727130821286,0.10901707,63356.0,63355.0,0.014]
[1727130822086,0.10901707,63356.0,63355.0,0.07698893]
[1727130827893,0.03010207,63356.0,63355.0,0.563716]
[1727130829686,0.03010207,63356.0,63355.0,0.63562857]
[1727130829885,0.03010207,63356.0,63355.0,0.563716]
[1727130830086,0.03010207,63356.0,63355.0,0.58839126]
[1727130830493,0.03010207,63356.0,63355.0,0.63562875]
[1727130831195,0.03010207,63356.0,63355.0,0.58839126]
[1727130831504,0.1089757,63356.0,63355.0,0.58839126]
[1727130831794,0.03010207,63356.0,63355.0,0.63562875]
[1727130831991,0.1089757,63356.0,63355.0,0.58839126]
[1727130832392,0.1089757,63356.0,63355.0,0.563716]
[1727130832597,0.1089757,63356.0,63355.0,0.63562898]
[1727130832907,0.1878907,63356.0,63355.0,0.44671273]
[1727130833087,0.1346033,63356.0,63355.0,0.3748]
[1727130833287,0.1346033,63356.0,63355.0,0.014]
[1727130836295,0.10901707,63356.0,63355.0,0.07698332]
[1727130836700,0.10901707,63356.0,63355.0,0.014]
[1727130839298,0.10901707,63356.0,63355.0,0.0770294]
[1727130839707,0.10901707,63356.0,63355.0,0.014]
[1727130840803,0.10901707,63356.0,63355.0,0.07703013]
[1727130840999,0.10901707,63356.0,63355.0,0.014]
[1727130841404,0.10901707,63356.0,63355.0,0.07703108]
[1727130841603,0.10901707,63356.0,63355.0,0.014]
[1727130842906,0.10901707,63356.0,63355.0,0.07703071]
[1727130843100,0.10901707,63356.0,63355.0,0.014]
[1727130843909,0.10901707,63356.0,63355.0,0.07703151]
[1727130844100,0.10901707,63356.0,63355.0,0.014]
[1727130844412,0.13460424,63356.0,63355.0,0.014]
[1727130844811,0.22925355,63356.0,63355.0,0.014]
[1727130845912,0.13460424,63356.0,63355.0,0.014]
[1727130846909,0.17753776,63356.0,63355.0,0.014]
[1727130847213,0.25645186,63356.0,63355.0,0.014]
[1727130847418,0.25645186,63356.0,63347.0,0.0037]
[1727130847419,1.17208183,63356.0,63347.0,0.0037]
[1727130847711,1.17208183,63356.0,63346.0,0.0037]
[1727130847712,0.078932,63342.0,63341.0,0.3608]
[1727130848012,0.61764961,63342.0,63333.0,0.04727231]
[1727130848311,0.078943,63333.0,63332.0,0.0488]
[1727130848502,0.07885299,63337.0,63332.0,0.1588]
[1727130848707,0.15779299,63337.0,63332.0,0.1588]
[1727130849096,0.07894,63337.0,63335.0,0.11]
[1727130850111,0.10907328,63337.0,63335.0,0.11]
[1727130851025,0.11007328,63337.0,63335.0,0.11]
[1727130851400,0.11007328,63337.0,63335.0,0.15727231]
[1727130852211,0.11007328,63337.0,63335.0,0.11]
[1727130853517,0.07894,63336.0,63335.0,0.11]
[1727130854011,0.03113328,63337.0,63335.0,0.11]
[1727130854321,0.03113328,63337.0,63336.0,0.07894]
[1727130854619,0.03113328,63337.0,63336.0,0.12621231]
[1727130854815,0.03013328,63337.0,63336.0,0.12621231]
[1727130855818,0.02913328,63337.0,63336.0,0.12621231]
[1727130856015,0.078936,63340.0,63337.0,0.078937]
[1727130856217,0.078936,63340.0,63339.0,0.11]
[1727130857506,0.079936,63340.0,63339.0,0.11]
[1727130858108,0.001,63340.0,63339.0,0.188936]
[1727130858322,0.002,63340.0,63339.0,0.663576]
[1727130859720,0.002,63340.0,63339.0,0.72660575]
[1727130859927,0.002,63340.0,63339.0,0.7543307]
[1727130860229,0.002,63340.0,63339.0,1.3543307]
[1727130860837,0.002,63340.0,63339.0,1.65210095]
[1727130861216,0.002,63340.0,63339.0,1.05210095]
[1727130863019,0.07892,63352.0,63339.0,1.75134001]
[1727130863325,0.44083501,63356.0,63353.0,0.078918]
[1727130863528,0.10930812,63355.0,63353.0,0.078918]
[1727130863720,0.08128462,63355.0,63353.0,0.078918]
[1727130865517,0.08528462,63355.0,63353.0,0.078918]
[1727130866220,0.078917,63354.0,63353.0,0.078918]
[1727130866916,0.10450463,63354.0,63353.0,0.078918]
[1727130867425,0.10650463,63354.0,63353.0,0.078918]
[1727130868220,0.10650519,63354.0,63353.0,0.078918]
[1727130869124,0.080917,63354.0,63353.0,0.078918]
[1727130869324,0.11050463,63354.0,63353.0,0.078918]
[1727130870517,0.03158763,63354.0,63353.0,0.078918]
[1727130872227,0.0846938,63354.0,63353.0,0.078918]
[1727130873937,0.006,63354.0,63353.0,0.078918]
[1727130879833,0.006,63354.0,63353.0,0.12604565]
[1727130880933,0.006,63354.0,63353.0,0.078918]
[1727130881134,0.006,63354.0,63353.0,0.12604565]
[1727130881330,0.006,63354.0,63353.0,0.078918]
[1727130881524,0.006,63354.0,63353.0,0.12604565]
[1727130881936,0.006,63354.0,63353.0,0.078918]
[1727130883758,0.006,63354.0,63353.0,0.518636]
[1727130884044,0.0037,63361.0,63353.0,0.518636]
[1727130884045,0.0037,63361.0,63360.0,0.07891]
[1727130884248,0.0786938,63363.0,63362.0,0.078907]
[1727130884436,0.1074217,63363.0,63362.0,0.188907]
[1727130885967,0.1214217,63363.0,63362.0,0.188907]
[1727130886241,0.0547279,63363.0,63362.0,0.188907]
[1727130887140,0.0803108,63363.0,63362.0,0.188907]
[1727130888240,0.08031077,63363.0,63362.0,0.188907]
[1727130888827,0.0547279,63363.0,63362.0,0.188907]
[1727130889243,0.0547279,63363.0,63362.0,0.25174387]
[1727130889643,0.0547279,63363.0,63362.0,0.188907]
[1727130891442,0.0547279,63363.0,63362.0,0.25174387]
[1727130891942,0.0547279,63363.0,63362.0,0.14174387]
[1727130892151,0.0547279,63363.0,63362.0,0.25174387]
[1727130892336,0.0547279,63363.0,63362.0,0.188907]
[1727130895729,0.1336339,63363.0,63362.0,0.188907]
[1727130896649,0.0547279,63363.0,63362.0,0.188907]
[1727130897736,0.0547279,63363.0,63362.0,0.549707]
[1727130900148,0.0547279,63363.0,63362.0,0.188907]
[1727130900345,0.0547279,63363.0,63362.0,0.549707]
[1727130901143,0.0547279,63363.0,63362.0,0.3608]
[1727130901144,0.1336339,63363.0,63362.0,0.3608]
[1727130903056,0.078907,63362.0,63361.0,0.06283687]
[1727130903239,0.07891,63360.0,63359.0,0.04720327]
[1727130903455,0.11,63360.0,63358.0,0.04720327]
[1727130903639,0.0489,63359.0,63356.0,0.04720327]
[1727130903840,0.078912,63358.0,63357.0,0.04720327]
[1727130904042,0.078916,63355.0,63354.0,0.3608]
[1727130904957,0.126116,63355.0,63354.0,0.3608]
[1727130905552,0.135116,63355.0,63354.0,0.3608]
[1727130906054,0.2139339,63355.0,63354.0,0.3608]
[1727130907653,0.135116,63355.0,63354.0,0.3608]
[1727130908066,0.16070297,63355.0,63354.0,0.3608]
[1727130908254,0.135116,63355.0,63354.0,0.3608]
[1727130908556,0.1638595,63355.0,63354.0,0.3608]
[1727130909147,0.24266712,63355.0,63354.0,0.3608]
[1727130910053,0.1638595,63355.0,63354.0,0.3608]
[1727130910865,0.1638595,63355.0,63354.0,0.439717]
[1727130911047,0.1638595,63355.0,63354.0,0.549717]
[1727130912866,0.1638595,63355.0,63354.0,0.3608]
[1727130914057,0.1638595,63355.0,63354.0,0.40799515]
[1727130915043,0.1638595,63355.0,63354.0,0.3608]
[1727130915250,0.1638595,63355.0,63354.0,0.439717]
[1727130915456,0.1638595,63355.0,63354.0,0.4869074]
[1727130915658,0.1638595,63355.0,63354.0,0.439717]
[1727130915862,0.1638595,63355.0,63354.0,0.48690897]
[1727130917153,0.1638595,63355.0,63354.0,0.439717]
[1727130917354,0.1638595,63355.0,63354.0,0.48690695]
[1727130918051,0.1638595,63355.0,63354.0,0.439717]
[1727130918351,0.1638595,63355.0,63354.0,0.48690559]
[1727130918545,0.1166595,63355.0,63354.0,0.48690559]
[1727130918951,0.1166595,63355.0,63354.0,0.439717]
[1727130923569,0.19546712,63355.0,63354.0,0.439717]
[1727130923771,0.1166595,63355.0,63354.0,0.3608]
[1727130923958,0.14224666,63355.0,63354.0,0.3608]
[1727130926371,0.25224666,63355.0,63354.0,0.3608]
[1727130926964,0.2266595,63355.0,63354.0,0.40798859]
[1727130927775,0.2266595,63355.0,63354.0,0.04718859]
[1727130928353,0.2266595,63355.0,63351.0,0.42363687]
[1727130928354,0.07892,63352.0,63351.0,0.04048254]
[1727130928559,0.078931,63343.0,63342.0,0.0037]
[1727130928766,0.078932,63342.0,63336.0,0.0037]
[1727130928957,0.078932,63342.0,63331.0,0.45984]
[1727130928958,0.11,63338.0,63331.0,0.45984]
[1727130929163,0.11,63335.0,63331.0,0.4091]
[1727130929364,0.078933,63341.0,63331.0,0.3608]
[1727130929365,0.11,63332.0,63331.0,0.3608]
[1727130929662,0.078947,63331.0,63328.0,0.3608]
[1727130931163,0.079947,63331.0,63328.0,0.4708]
[1727130931564,0.080947,63331.0,63328.0,0.4738]
[1727130933074,0.080947,63331.0,63328.0,0.113]
[1727130935877,0.078948,63329.0,63328.0,0.113]
[1727130937260,0.080948,63329.0,63328.0,0.111]
[1727130941477,0.080948,63329.0,63328.0,0.001]
[1727130946682,0.080948,63329.0,63328.0,0.07995]
[1727130958391,0.002,63329.0,63328.0,0.07995]
[1727130959489,0.002,63329.0,63328.0,0.15864294]
[1727130960589,0.002,63329.0,63328.0,0.18004659]
[1727130961783,0.002,63329.0,63328.0,0.17988442]
[1727130963186,0.002,63329.0,63328.0,0.28988442]
[1727130963897,0.002,63329.0,63328.0,0.17988442]
[1727130964993,0.002,63329.0,63328.0,0.27462596]
[1727130965886,0.002,63329.0,63328.0,0.17988442]
[1727130966689,0.080948,63329.0,63328.0,0.10093442]
[1727130966888,0.080948,63329.0,63328.0,0.17988776]
[1727130967188,0.002,63329.0,63328.0,0.17998714]
[1727130967389,0.002,63329.0,63328.0,0.25893931]
[1727130968107,0.080948,63329.0,63328.0,0.15890217]
[1727130969298,0.080948,63329.0,63328.0,0.07995]
[1727130969490,0.080948,63329.0,63328.0,0.15890217]
[1727130969796,0.080948,63329.0,63328.0,0.07995]
[1727130969998,0.080948,63329.0,63328.0,0.15890217]
[1727130970388,0.080948,63329.0,63328.0,0.07995]
[1727130972100,0.080948,63329.0,63328.0,0.001]
[1727130972897,0.129048,63329.0,63328.0,0.001]
[1727130973201,0.28685236,63329.0,63328.0,0.001]
[1727130973386,0.207996,63329.0,63328.0,0.001]
[1727130973592,0.23359651,63329.0,63328.0,0.001]
[1727130973997,0.07796,63320.0,63319.0,0.08265217]
[1727130974197,0.18796,63320.0,63319.0,0.1791891]
[1727130974401,0.18796,63320.0,63318.0,0.00771235]
[1727130974402,0.078961,63319.0,63318.0,0.00771235]
[1727130974612,0.253522,63319.0,63318.0,0.00771235]
[1727130974900,0.252522,63319.0,63318.0,0.00771235]
[1727130975501,0.174561,63319.0,63318.0,0.00771235]
[1727130975699,0.285561,63319.0,63318.0,0.00871235]
[1727130977289,0.129061,63319.0,63318.0,0.00871235]
[1727130978994,0.239061,63319.0,63318.0,0.00871235]
[1727130982998,0.599861,63319.0,63318.0,0.00871235]
[1727130983402,0.648461,63319.0,63318.0,0.00871235]
[1727130989996,0.727422,63319.0,63318.0,0.00871235]
[1727130991407,0.727422,63319.0,63311.0,2.71337209]
[1727130991408,0.07897,63312.0,63311.0,2.26914554]
[1727130991711,1.10258,63312.0,63311.0,1.46086181]
[1727130991902,1.70258,63312.0,63311.0,1.46086181]
[1727130992495,1.10258,63312.0,63311.0,1.46086181]
[1727130992709,1.10358,63312.0,63311.0,1.46086181]
[1727130992907,0.62974,63312.0,63311.0,1.46086181]
[1727130993208,0.65886106,63312.0,63311.0,1.46086181]
[1727130993914,0.57989106,63312.0,63311.0,1.46086181]
[1727130994206,0.58089106,63312.0,63311.0,1.46086181]
[1727130999099,0.22009106,63312.0,63311.0,1.46086181]
[1727130999303,0.58089106,63312.0,63311.0,1.46086181]
[1727131000603,0.47089106,63312.0,63311.0,1.46086181]
[1727131003915,0.39192106,63312.0,63311.0,1.53983281]
[1727131004117,0.03112106,63312.0,63311.0,1.53983281]
[1727131004810,0.03112106,63312.0,63311.0,1.60279869]
[1727131005116,0.03112106,63312.0,63311.0,1.53983281]
[1727131005716,0.02912106,63312.0,63311.0,1.53983281]
[1727131005913,0.03012106,63312.0,63311.0,1.53983281]
[1727131007417,0.02912106,63312.0,63311.0,1.53983281]
[1727131007646,0.03012106,63312.0,63311.0,1.53983281]
[1727131016226,0.10909106,63312.0,63311.0,1.53983281]
[1727131018715,0.10909106,63312.0,63311.0,1.46086181]
[1727131020021,0.10809106,63312.0,63311.0,1.46086181]
[1727131021346,0.10709106,63312.0,63311.0,1.46086181]
[1727131021930,0.10909106,63312.0,63311.0,1.46086181]
[1727131022230,0.11009106,63312.0,63311.0,1.46086181]
[1727131028626,0.11009106,63312.0,63311.0,1.53983281]
[1727131028928,0.03112106,63312.0,63311.0,1.53983281]
[1727131029730,0.11009106,63312.0,63311.0,1.46086181]
[1727131033534,0.11009106,63312.0,63311.0,1.52389609]
[1727131033729,0.11009106,63312.0,63311.0,1.46086181]
[1727131034650,0.11009106,63312.0,63311.0,1.52389609]
[1727131040327,0.03112106,63312.0,63311.0,1.60286709]
[1727131040532,0.003,63312.0,63311.0,1.64019038]
[1727131040740,0.003,63312.0,63311.0,2.76243038]
[1727131040931,0.003,63312.0,63311.0,2.28847793]
[1727131041133,0.003,63312.0,63311.0,2.76231793]
[1727131042034,0.003,63312.0,63311.0,2.7870089]
[1727131042743,0.002,63312.0,63311.0,2.7870089]
[1727131043442,0.02896542,63315.0,63314.0,0.078967]
[1727131043638,0.078962,63318.0,63317.0,0.078963]
[1727131043836,0.078962,63318.0,63317.0,0.14209719]
[1727131045147,0.006,63318.0,63317.0,0.14209719]
[1727131046046,0.006,63318.0,63317.0,0.188963]
[1727131046047,0.03454378,63318.0,63317.0,0.188963]
[1727131046239,0.006,63318.0,63317.0,0.188963]
[1727131046641,0.078959,63321.0,63320.0,0.07896]
[1727131047849,0.081959,63321.0,63320.0,0.07896]
[1727131048238,0.16073337,63321.0,63320.0,0.07896]
[1727131048947,0.08377437,63321.0,63320.0,0.07896]
[1727131049247,0.03404155,63321.0,63320.0,0.07896]
[1727131050332,0.03404155,63321.0,63320.0,0.18896]
[1727131050537,0.03404155,63321.0,63320.0,0.54976]
[1727131050942,0.03404155,63321.0,63320.0,0.57444768]
[1727131051450,0.03404155,63321.0,63320.0,0.57444783]
[1727131051451,0.03004155,63321.0,63320.0,0.57444783]
[1727131051636,0.03004155,63321.0,63320.0,0.54976]
[1727131052237,0.03104155,63321.0,63320.0,0.54976]
[1727131053443,0.03004155,63321.0,63320.0,0.54976]
[1727131054046,0.03004155,63321.0,63320.0,0.62177101]
[1727131054241,0.03004155,63321.0,63320.0,0.57444724]
[1727131054440,0.03004155,63321.0,63320.0,0.65336498]
[1727131054642,0.001,63321.0,63320.0,0.65336498]
[1727131054869,0.001,63321.0,63320.0,0.62867774]
[1727131055050,0.001,63321.0,63320.0,0.65336464]
[1727131055249,0.001,63321.0,63320.0,0.5744469]
[1727131055441,0.001,63321.0,63320.0,0.54976]
[1727131056147,0.001,63321.0,63320.0,0.43976]
[1727131057444,0.13817492,63322.0,63321.0,0.078958]
[1727131059254,0.21713192,63322.0,63321.0,0.078958]
[1727131061058,0.21713192,63322.0,63321.0,0.12621794]
[1727131061745,0.21713192,63322.0,63321.0,0.078958]
[1727131061953,0.21713192,63322.0,63321.0,0.12621987]
[1727131062145,0.21713192,63322.0,63321.0,0.078958]
[1727131062757,0.21813192,63322.0,63321.0,0.078958]
[1727131062955,0.078958,63321.0,63320.0,0.3608]
[1727131063151,0.124858,63321.0,63320.0,0.40806559]
[1727131064048,0.125858,63321.0,63320.0,0.40806559]
[1727131065463,0.128858,63321.0,63320.0,0.40806559]
[1727131067257,0.128858,63321.0,63320.0,0.3608]
[1727131067457,0.128858,63321.0,63320.0,0.43976]
[1727131067458,0.084958,63321.0,63320.0,0.43976]
[1727131068157,0.084958,63321.0,63320.0,0.50277408]
[1727131068957,0.081958,63321.0,63320.0,0.50277408]
[1727131069162,0.082958,63321.0,63320.0,0.50277408]
[1727131069462,0.082958,63321.0,63320.0,0.48707801]
[1727131070149,0.078958,63321.0,63320.0,0.48707801]
[1727131070347,0.078958,63321.0,63320.0,0.43976]
[1727131072759,0.078958,63321.0,63320.0,0.48710006]
[1727131074257,0.078958,63321.0,63320.0,0.43976]
[1727131075653,0.079958,63321.0,63320.0,0.43976]
[1727131079669,0.080958,63321.0,63320.0,0.43976]
[1727131079869,0.081958,63321.0,63320.0,0.43976]
[1727131080469,0.083958,63321.0,63320.0,0.43976]
[1727131084464,0.16273237,63321.0,63320.0,0.43976]
[1727131085061,0.16373237,63321.0,63320.0,0.43976]
[1727131085278,0.084958,63321.0,63320.0,0.43976]
[1727131085664,0.11055824,63321.0,63320.0,0.43976]
[1727131085973,0.11055824,63321.0,63320.0,0.40817458]
[1727131086164,0.11255824,63321.0,63320.0,0.40817458]
[1727131086678,0.11355824,63321.0,63320.0,0.40817458]
[1727131086977,0.20818182,63321.0,63320.0,0.3608]
[1727131087166,0.21018182,63321.0,63320.0,0.3608]
[1727131087677,0.21018101,63321.0,63320.0,0.3608]
[1727131087980,0.21118101,63321.0,63320.0,0.3608]
[1727131088363,0.11655824,63321.0,63320.0,0.3608]
[1727131088564,0.21118104,63321.0,63320.0,0.3608]
[1727131089371,0.11655824,63321.0,63320.0,0.3608]
[1727131090077,0.078961,63319.0,63317.0,0.078963]
[1727131090272,0.02560024,63318.0,63317.0,0.078963]
[1727131091570,0.078962,63318.0,63317.0,0.25847083]
[1727131091768,0.081962,63318.0,63317.0,0.25847083]
[1727131092171,0.081962,63318.0,63317.0,0.25847009]
[1727131092469,0.081962,63318.0,63317.0,0.25852152]
[1727131093169,0.083962,63318.0,63317.0,0.25852152]
[1727131096283,0.083962,63318.0,63317.0,0.20424234]
[1727131097283,0.005,63318.0,63317.0,0.20424234]
[1727131097478,0.005,63318.0,63317.0,0.29898388]
[1727131097877,0.005,63318.0,63317.0,0.20424234]
[1727131098579,0.005,63318.0,63317.0,0.27429565]
[1727131098786,0.005,63318.0,63317.0,0.29898417]
[1727131099577,0.003,63318.0,63317.0,0.10365152]
[1727131100181,0.078958,63321.0,63320.0,0.07896]
[1727131101384,0.081958,63321.0,63320.0,0.07896]
[1727131102276,0.083958,63321.0,63320.0,0.07896]
[1727131103286,0.16280826,63321.0,63320.0,0.12633411]
[1727131106483,0.083958,63321.0,63320.0,0.12633411]
[1727131106682,0.083958,63321.0,63320.0,0.07896]
[1727131115089,0.081958,63321.0,63320.0,0.07896]
[1727131115281,0.085958,63321.0,63320.0,0.07896]
[1727131116399,0.086958,63321.0,63320.0,0.07896]
[1727131117093,0.087958,63321.0,63320.0,0.07896]